Workbook

Sheet Legend
A1: L E G E N D
A2: COLOR | B2: CONTRACTOR INSTRUCTIONS
A3: 0 | B3: To Be Entered by Contractor
A4: ='[1]Sch A'!$I$15 -> 0 | B4: Automatically Calculated and Brought Forward (Contractor Should not Alter)
A5: ='[1]Sch A'!$I$15 -> 0 | B5: Automatically Calculated (Contractor Should not Alter)

Sheet Sch A
A1: STORMWATER MANAGEMENT FACILITIES | S1: FYI - The table below calcuates the Total Annual SF and the Total Annual Cost. Those costs are transferred to the Routine Line Items and Summary Table (bottom left)
A2: SCHEDULE A - MAINTENANCE PRICING SCHEDULE BY LOCATION
A4: FURNISHING ALL LABOR, MATERIALS, EQUIPMENT, DISPOSAL & HAUL FOR THE INSPECTION & MAINTENANCE
A5: OF COUNTY-OWNED STORMWATER MANAGEMENT FACILITIES IN ARLINGTON, VIRGINIA
A7: CONTRACTOR: PLEASE PROVIDE PRICES IN ALL CELLS HIGHLIGHTED IN BLUE
S8: does not print
A9: SCHEDULE A - MAINTENANCE PRICING SCHEDULE BY LOCATION
A10: FACILITIES COST BREAKDOWN BY LOCATION | S10: BIORETENTION | U10: FILTERRA | W10: PERMEABLE PAVEMENT
A11: OWNER | B11: LAT | C11: LONG | D11: FACILITY ID | E11: CSP | F11: FACILITY LOCATION | G11: FACILITY ADDRESS | H11: FACILITY DESCRIPTION | I11: RELEASE | J11: Pretreatment | K11: SERVICE SPEC (LINE ITEM #) | L11: SIZE (SF) | M11: SERVICE MONTHS ** | N11: ANNUAL VISITS | O11: UNIT PRICE (PER SITE VISIT) | P11: ONE-YEAR CONTRACT PRICE | S11: TOTAL ANNUAL SF | T11: TOTAL ANNUAL COST | U11: TOTAL ANNUAL SF | V11: TOTAL ANNUAL COST | W11: TOTAL ANNUAL SF | X11: TOTAL ANNUAL COST
A12: FMB | B12: 38.857018 | C12: -77.111997 | D12: 08-1079D | E12: 1100807 | F12: ARL MILL COMM CTR | G12: 4975 COLUMBIA PIKE | H12: FILTERRA | I12: UNDERDRAIN | J12: FILTER STRIP | K12: V101-01 | L12: 24 | M12: AUG FEB | N12: 2 | O12: 0 | P12: =N12*O12 -> 0 | U12: =L12*N12 -> 48 | V12: =P12 -> $0.00
A13: FMB | B13: 38.857411 | C13: -77.058729 | D13: 03-872B | E13: 767 | F13: FIRE STATION #5 | G13: 1750 S HAYES ST | H13: FILTERRA | I13: UNDERDRAIN | J13: FILTER STRIP | K13: V101-01 | L13: 24 | M13: AUG FEB | N13: 2 | O13: 0 | P13: 0 | U13: =L13*N13 -> 48 | V13: =P13 -> $0.00
A14: FMB | B14: 38.857341 | C14: -77.058629 | D14: 03-872C | E14: 767 | F14: FIRE STATION #5 | G14: 1750 S HAYES ST | H14: FILTERRA | I14: UNDERDRAIN | J14: FILTER STRIP | K14: V101-01 | L14: 24 | M14: AUG FEB | N14: 2 | O14: 0 | P14: 0 | U14: 48 | V14: $0.00
A15: FMB | B15: 38.883699 | C15: -77.106263 | D15: 89-362 | E15: 453 | F15: CENTRAL LIBRARY | G15: 1015 N QUINCY ST | H15: DRY POND w/CONCRETE SWALE - GRASS | I15: OUTLET TO STORM DRAIN | K15: V100-01 | L15: 4,570 | M15: AUG | N15: 1 | O15: 0 | P15: 0 | S15: =L15*N15 -> 4,570 | T15: =P15 -> $0.00
A16: FMB | B16: 38.857425 | C16: -77.058036 | D16: 03-872A | E16: 767 | F16: FIRE STATION #5 | G16: 1750 S HAYES ST | H16: BIORETENTION | I16: UNDERDRAIN | J16: Stone Diaphragm | K16: V100-01 | L16: 225 | M16: AUG OCT DEC FEB APR JUN | N16: 6 | O16: 0 | P16: 0 | S16: =L16*N16 -> 1,350 | T16: =P16 -> $0.00
A17: FMB | B17: 38.901976 | C17: -77.096898 | D17: 07-1069B | E17: 501542 | F17: WOODMONT COMM CTR | G17: 2422 N FILLMORE ST | H17: BIORETENTION W/STORMCHAMBER | I17: 34" STORMCHAMBER UNDERDRAIN TO STORM DRAIN | J17: Grass Filter Strip | K17: V100-01 | L17: 943 | M17: AUG OCT DEC FEB APR JUN | N17: 6 | O17: 0 | P17: 0 | S17: 5,658 | T17: $0.00
A18: FMB | B18: 38.897104 | C18: -77.127622 | D18: 15-2115A | E18: 15252 | F18: FIRE STATION HOUSE | G18: 2217 N CULPEPPER ST | H18: SW PLANTER 1 - 9" | I18: UNDERDRAIN TO TRENCH | J18: Stone Diaphragm | K18: V100-01 | L18: 32 | M18: AUG FEB | N18: 2 | O18: 0 | P18: 0 | S18: =L18*N18 -> 64 | T18: =P18 -> $0.00
A19: FMB | B19: 38.897083 | C19: -77.127537 | D19: 15-2115B | E19: 15252 | F19: FIRE STATION HOUSE | G19: 2217 N CULPEPPER ST | H19: INFILTRATION TRENCH - GRAVEL | I19: INFILTRATION | J19: Planter Box, Drain Pit | K19: V100-01 | L19: 32 | M19: AUG FEB | N19: 2 | O19: 0 | P19: 0 | S19: =L19*N19 -> 64 | T19: =P19 -> $0.00
A20: FMB | B20: 38.856303 | C20: -77.11175 | D20: 08-1079B | E20: 1100807 | F20: ARL MILL COMM CTR | G20: 4975 COLUMBIA PIKE | H20: PERMEABLE PAVERS - OW | I20: UNDERDRAIN TO DETENTION VAULT | K20: P100-01 | L20: 8,276 | M20: MAR JULY DEC | N20: 3 | O20: 0 | P20: 0 | W20: =L20*N20 -> 24,828 | X20: =P20 -> $0.00
A21: FMB | B21: 38.897831 | C21: -77.110474 | D21: 06-1022D | E21: 934 | F21: FIRE STATION #3 | G21: 4100 OLD DOMINION DR | H21: PERMEABLE PAVERS | I21: INFILTRATION | K21: P100-01 | L21: 2,200 | M21: MAR JULY DEC | N21: 3 | O21: 0 | P21: 0 | W21: =L21*N21 -> 6,600 | X21: =P21 -> $0.00
A22: FMB | B22: 38.857685 | C22: -77.058683 | D22: 03-872D | E22: 767 | F22: FIRE STATION #5 | G22: 1750 S HAYES ST | H22: OPEN BLOCK PERMEABLE PAVERS | I22: INFILTRATION | K22: P100-01 | L22: 2,830 | M22: MAR JULY DEC | N22: 3 | O22: 0 | P22: 0 | W22: 8,490 | X22: $0.00
A23: FMB | B23: 38.851756 | C23: -77.092373 | D23: 13-1522 | E23: 13187 | F23: FIRE STATION #9 | G23: 1900 S WALTER REED DR | H23: PAVE DRAIN PERM PAVERS - OW | I23: INFILTRATION | K23: P100-01 | L23: 1,730 | M23: MAR JULY DEC | N23: 3 | O23: 0 | P23: 0 | W23: 5,190 | X23: $0.00
A24: FMB | B24: 38.844692 | C24: -77.066814 | D24: 18-0156A | E24: 19050 | F24: HEAD START A | G24: 2920 S GLEBE ROAD | H24: SYNTHETIC TURF* - OW | I24: Underdrain | J24: Sump Pit | K24: P100-01 | L24: 645 | M24: MAR | N24: 1 | O24: 0 | P24: 0 | W24: 645 | X24: $0.00
A25: FMB | B25: 38.844799 | C25: -77.066827 | D25: 18-0156B | E25: 19050 | F25: HEAD START B | G25: 2920 S GLEBE ROAD | H25: SYNTHETIC TURF* - OW | I25: Underdrain | K25: P100-01 | L25: 1,470 | M25: MAR | N25: 1 | O25: 0 | P25: 0 | W25: 1,470 | X25: $0.00
A26: FMB | B26: 38.844751 | C26: -77.066972 | D26: 18-0156C | E26: 19050 | F26: HEAD START C | G26: 2920 S GLEBE ROAD | H26: SYNTHETIC TURF* - OW | I26: Underdrain | J26: Sump Pit | K26: P100-01 | L26: 1,578 | M26: MAR | N26: 1 | O26: 0 | P26: 0 | W26: 1,578 | X26: $0.00
H27: *inspection only
A28: OWNER | D28: FACILITY ID | E28: CSP | F28: FACILITY LOCATION | G28: FACILITY ADDRESS | H28: FACILITY DESCRIPTION | K28: SERVICE SPEC (LINE ITEM #) | L28: SIZE (SF) | M28: SERVICE MONTHS ** | N28: ANNUAL VISITS | O28: UNIT PRICE (PER SITE VISIT) | P28: ONE-YEAR CONTRACT PRICE | S28: TOTAL ANNUAL SF | T28: TOTAL ANNUAL COST | U28: TOTAL ANNUAL SF | V28: TOTAL ANNUAL COST | W28: TOTAL ANNUAL SF | X28: TOTAL ANNUAL COST
A29: OSEM | B29: 38.843711 | C29: -77.085879 | D29: 2012-3 | E29: 4620275 | F29: WEENIE BEENIE | G29: 2680 S SHIRLINGTON RD | H29: DRY SWALE - GRASS | I29: UNDERDRAIN | K29: V100-01 | L29: 325 | M29: AUG | N29: 1 | O29: 0 | P29: =N29*O29 -> 0 | S29: =L29*N29 -> 325 | T29: =P29 -> $0.00
A30: OSEM | B30: 38.919269 | C30: -77.120925 | D30: 2014-4A | E30: 99997 | F30: GULF BRANCH NATURE CTR | G30: 3608 N MILITARY RD | H30: SW PLANTER - 3" | I30: UNDERDRAIN | J30: Stone Diaphragm | K30: V100-01 | L30: 175 | M30: AUG FEB | N30: 2 | O30: 0 | P30: 0 | S30: =L30*N30 -> 350 | T30: =P30 -> $0.00
A31: OSEM | B31: 38.919246 | C31: -77.121027 | D31: 2014-4B | E31: 99997 | F31: GULF BRANCH NATURE CTR | G31: 3608 N MILITARY RD | H31: SW PLANTER - 3" | I31: UNDERDRAIN | J31: Stone Diaphragm | K31: V100-01 | L31: 60 | M31: AUG FEB | N31: 2 | O31: 0 | P31: =N31*O31 -> 0 | S31: =L31*N31 -> 120 | T31: =P31 -> $0.00
A32: OSEM | B32: 38.86087 | C32: -77.060035 | D32: 2014-5A | E32: 4615133 | F32: PENTAGON CITY | G32: 1200 S HAYES ST | H32: SW PLANTER | I32: UNDERDRAIN | J32: Stone or Concrete | K32: V100-01 | L32: 100 | M32: JUL AUG SEP OCT DEC FEB APR MAY JUN | N32: 9 | O32: 0 | P32: 0 | S32: 900 | T32: $0.00
A33: OSEM | B33: 38.861155 | C33: -77.060003 | D33: 2014-5B | E33: 4615133 | F33: PENTAGON CITY | G33: 1200 S HAYES ST | H33: SW PLANTER | I33: UNDERDRAIN | J33: Stone or Concrete | K33: V100-01 | L33: 100 | M33: JUL AUG SEP OCT DEC FEB APR MAY JUN | N33: 9 | O33: 0 | P33: 0 | S33: 900 | T33: $0.00
A34: OSEM | B34: 38.861459 | C34: -77.059987 | D34: 2014-5C | E34: 4615133 | F34: PENTAGON CITY | G34: 1200 S HAYES ST | H34: SW PLANTER | I34: UNDERDRAIN | J34: Stone or Concrete | K34: V100-01 | L34: 100 | M34: JUL AUG SEP OCT DEC FEB APR MAY JUN | N34: 9 | O34: 0 | P34: =N34*O34 -> 0 | S34: =L34*N34 -> 900 | T34: =P34 -> $0.00
A35: OSEM | B35: 38.861722 | C35: -77.059959 | D35: 2014-5D | E35: 4615133 | F35: PENTAGON CITY | G35: 1200 S HAYES ST | H35: SW PLANTER | I35: UNDERDRAIN | J35: Stone or Concrete | K35: V100-01 | L35: 100 | M35: JUL AUG SEP OCT DEC FEB APR MAY JUN | N35: 9 | O35: 0 | P35: 0 | S35: 900 | T35: $0.00
A36: OSEM | B36: 38.862113 | C36: -77.059903 | D36: 2014-5E | E36: 4615133 | F36: PENTAGON CITY | G36: 1200 S HAYES ST | H36: SW PLANTER | I36: UNDERDRAIN | J36: Stone or Concrete | K36: V100-01 | L36: 100 | M36: JUL AUG SEP OCT DEC FEB APR MAY JUN | N36: 9 | O36: 0 | P36: 0 | S36: 900 | T36: $0.00
A37: OSEM | B37: 38.863524 | C37: -77.059574 | D37: 2014-5F | E37: 4615133 | F37: PENTAGON CITY | G37: 1200 S HAYES ST | H37: SW PLANTER | I37: UNDERDRAIN | J37: Stone or Concrete | K37: V100-01 | L37: 50 | M37: JUL AUG SEP OCT DEC FEB APR MAY JUN | N37: 9 | O37: 0 | P37: 0 | S37: 450 | T37: $0.00
A38: OSEM | B38: 38.863802 | C38: -77.05945 | D38: 2014-5G | E38: 4615133 | F38: PENTAGON CITY | G38: 1200 S HAYES ST | H38: SW PLANTER | I38: UNDERDRAIN | J38: Stone or Concrete | K38: V100-01 | L38: 50 | M38: JUL AUG SEP OCT DEC FEB APR MAY JUN | N38: 9 | O38: 0 | P38: 0 | S38: 450 | T38: $0.00
A39: OSEM | B39: 38.864058 | C39: -77.05933 | D39: 2014-5H | E39: 4615133 | F39: PENTAGON CITY | G39: 1200 S HAYES ST | H39: SW PLANTER | I39: UNDERDRAIN | J39: Stone or Concrete | K39: V100-01 | L39: 50 | M39: JUL AUG SEP OCT DEC FEB APR MAY JUN | N39: 9 | O39: 0 | P39: 0 | S39: 450 | T39: $0.00
A40: OSEM | B40: 38.864494 | C40: -77.059101 | D40: 2014-5I | E40: 4615133 | F40: PENTAGON CITY | G40: 1200 S HAYES ST | H40: SW PLANTER | I40: UNDERDRAIN | J40: Stone or Concrete | K40: V100-01 | L40: 50 | M40: JUL AUG SEP OCT DEC FEB APR MAY JUN | N40: 9 | O40: 0 | P40: 0 | S40: 450 | T40: $0.00
A41: OSEM | B41: 38.864815 | C41: -77.058948 | D41: 2014-5J | E41: 4615133 | F41: PENTAGON CITY | G41: 1200 S HAYES ST | H41: SW PLANTER | I41: UNDERDRAIN | J41: Stone or Concrete | K41: V100-01 | L41: 50 | M41: JUL AUG SEP OCT DEC FEB APR MAY JUN | N41: 9 | O41: 0 | P41: 0 | S41: 450 | T41: $0.00
A42: OSEM | B42: 38.86505 | C42: -77.058866 | D42: 2014-5K | E42: 4615133 | F42: PENTAGON CITY | G42: 1200 S HAYES ST | H42: SW PLANTER | I42: UNDERDRAIN | J42: Stone or Concrete | K42: V100-01 | L42: 50 | M42: JUL AUG SEP OCT DEC FEB APR MAY JUN | N42: 9 | O42: 0 | P42: 0 | S42: 450 | T42: $0.00
A43: OSEM | B43: 38.863653 | C43: -77.059236 | D43: 2014-5L | E43: 4615133 | F43: PENTAGON CITY | G43: 1100 S HAYES ST | H43: BIORETENTION | I43: UNDERDRAIN | J43: Stone Diaphragm | K43: V100-01 | L43: 1,548 | M43: JUL AUG SEP OCT DEC FEB APR MAY JUN | N43: 9 | O43: 0 | P43: 0 | S43: 13,932 | T43: $0.00
A44: OSEM | B44: 38.863823 | C44: -77.095843 | D44: 2015-6 | E44: 4620326 | F44: 8TH ST S | G44: 8TH ST S @ S MONROE ST | H44: BIORETENTION | I44: UNDERDRAIN TO CATCH BASIN | J44: Stone Diaphragm | K44: V100-01 | L44: 609 | M44: JUL AUG SEP OCT NOV FEB APR MAY JUN | N44: 9 | O44: 0 | P44: 0 | S44: 5,481 | T44: $0.00
A45: OSEM | B45: 38.899428 | C45: -77.123711 | D45: 2012-2 | E45: 4620269 | F45: N ALBEMARLE ST | G45: N ALBEMARLE ST @ 23rd ST N | H45: BIORETENTION | I45: UNDERDRAIN | J45: Stone Diaphragm | K45: V100-01 | L45: 578 | M45: AUG OCT DEC FEB APR JUN | N45: 6 | O45: 0 | P45: 0 | S45: 3,468 | T45: $0.00
A46: OSEM | B46: 38.87705 | C46: -77.141782 | D46: 2011-1A | E46: 4620279 | F46: PATRICK HENRY DRIVE | G46: 949 PATRICK HENRY DR | H46: BIORETENTION | I46: UNDERDRAIN | J46: Stone Diaphragm | K46: V100-01 | L46: 823 | M46: JUL AUG SEP OCT NOV FEB APR MAY JUN | N46: 9 | O46: 0 | P46: 0 | S46: 7,407 | T46: $0.00
A47: OSEM | B47: 38.876827 | C47: -77.141878 | D47: 2011-1B | E47: 4620279 | F47: PATRICK HENRY DRIVE | G47: 949 PATRICK HENRY DR | H47: BIORETENTION | I47: UNDERDRAIN | J47: Stone Diaphragm | K47: V100-01 | L47: 253 | M47: JUL AUG SEP OCT NOV FEB APR MAY JUN | N47: 9 | O47: 0 | P47: 0 | S47: 2,277 | T47: $0.00
A48: OSEM | B48: 38.89180875 | C48: -77.13519084 | D48: 15-1926 | E48: 15042 | F48: PATRICK HENRY DRIVE | G48: 2013 PATRICK HENRY DR | H48: BIORETENTION | I48: Underdrain, overflows back into street | J48: Stone Diaphragm | K48: V100-01 | L48: 470 | M48: JUL AUG SEP OCT NOV FEB APR MAY JUN | N48: 9 | O48: 0 | P48: 0 | S48: 4,230 | T48: $0.00
A49: OSEM | B49: 38.90396159 | C49: -77.12517334 | D49: 16-0103 | E49: 16109 | F49: 26TH ST LEAF STORAGE SITE | G49: 4628 26TH ST N | H49: BIORETENTION | I49: Underdrain | J49: Concrete Forebay | K49: V100-01 | L49: 1,730 | M49: JUL AUG SEP OCT NOV FEB APR MAY JUN | N49: 9 | O49: 0 | P49: 0 | S49: 15,570 | T49: $0.00
A50: OSEM | B50: 38.88661696 | C50: -77.09081212 | D50: 15-2067A | E50: 15196 | F50: 11ST N PARK | G50: 11TH ST N @ N DANVILLE ST | H50: BIORETENTION - 12" | I50: Underdrain to storm sewer | J50: Stone Diaphragm | K50: V100-01 | L50: 201 | M50: AUG OCT DEC FEB APR JUN | N50: 6 | O50: 0 | P50: =N50*O50 -> 0 | S50: 1,206 | T50: $0.00
A51: OSEM | B51: 38.88679195 | C51: -77.09046675 | D51: 15-2067B | E51: 15196 | F51: 11ST N PARK | G51: 11TH ST N @ N DANVILLE ST | H51: BIORETENTION - 6" | I51: Underdrain to storm sewer | J51: Stone Diaphragm | K51: V100-01 | L51: 88 | M51: AUG OCT DEC FEB APR JUN | N51: 6 | O51: 0 | P51: =N51*O51 -> 0 | S51: =L51*N51 -> 528 | T51: =P51 -> $0.00
A52: OSEM | B52: 38.90368628 | C52: -77.15018143 | D52: 15-1971A | E52: 15094 | F52: JOHN MARSHALL DR | G52: 3112 JOHN MARSHALL DR | H52: BIORETENTION - 12" | I52: Underdrain to storm sewer | J52: Stone Diaphragm | K52: V100-01 | L52: 2,245 | M52: JUL AUG SEP OCT NOV FEB APR MAY JUN | N52: 9 | O52: 0 | P52: 0 | S52: =L52*N52 -> 20,205 | T52: =P52 -> $0.00
A53: OSEM | B53: 38.90329185 | C53: -77.14996825 | D53: 15-1971B | E53: 15094 | F53: JOHN MARSHALL DR | G53: 3101 JOHN MARSHALL DR | H53: BIORETENTION - 12" | I53: Underdrain to storm sewer | J53: Stone Diaphragm | K53: V100-01 | L53: 865 | M53: JUL AUG SEP OCT NOV FEB APR MAY JUN | N53: 9 | O53: 0 | P53: 0 | S53: 7,785 | T53: $0.00
A54: OSEM | B54: 38.90358524 | C54: -77.14895629 | D54: 15-1971C | E54: 15094 | F54: N KENSINGTON ST | G54: 3212 N KENSINGTON ST | H54: BIORETENTION - 6" | I54: Underdrain to storm sewer | J54: Stone Diaphragm | K54: V100-01 | L54: 610 | M54: JUL AUG SEP OCT NOV FEB APR MAY JUN | N54: 9 | O54: 0 | P54: 0 | S54: =L54*N54 -> 5,490 | T54: =P54 -> $0.00
A55: OSEM | B55: 38.9032409 | C55: -77.14844096 | D55: 15-1971D | E55: 15094 | F55: 32ND ST N | G55: 5640 32ND ST N | H55: BIORETENTION - 6" | I55: Underdrain to storm sewer | J55: Stone Diaphragm | K55: V100-01 | L55: 555 | M55: JUL AUG SEP OCT NOV FEB APR MAY JUN | N55: 9 | O55: 0 | P55: 0 | S55: =L55*N55 -> 4,995 | T55: =P55 -> $0.00
A56: OSEM | B56: 38.91147083 | C56: -77.13868475 | D56: 15-2091A | E56: 15227 | F56: WILLIAMSBURG | G56: WILLIAMSBURG @ 34TH ST N - 34TH RD N | H56: BIORETENTION - 12" | I56: Underdrain to storm drain | J56: Stone Forebay | K56: V100-01 | L56: 1,598 | M56: JUL AUG SEP OCT NOV FEB APR MAY JUN | N56: 9 | O56: 0 | P56: =N56*O56 -> 0 | S56: 14,382 | T56: $0.00
A57: OSEM | B57: 38.91168498 | C57: -77.1385905 | D57: 15-2091B | E57: 15227 | F57: WILLIAMSBURG | G57: WILLIAMSBURG @ 33RD RD - 34TH ST N | H57: BIORETENTION - 12" | I57: Underdrain to storm drain | J57: Stone Forebay | K57: V100-01 | L57: 1,595 | M57: JUL AUG SEP OCT NOV FEB APR MAY JUN | N57: 9 | O57: 0 | P57: 0 | S57: 14,355 | T57: $0.00
A58: OSEM | B58: 38.90736663 | C58: -77.14533686 | D58: 16-0320A | E58: 16347 | F58: WILLIAMSBURG | G58: WILLIAMSBURG @ N HARRISON ST | H58: BIORETENTION - 6" | I58: Underdrain to storm drain | J58: Stone Forebay | K58: V100-01 | L58: 906 | M58: JUL AUG SEP OCT NOV FEB APR MAY JUN | N58: 9 | O58: 0 | P58: 0 | S58: 8,154 | T58: $0.00
A59: OSEM | B59: 38.90739201 | C59: -77.14523312 | D59: 16-0320B | E59: 16347 | F59: WILLIAMSBURG | G59: WILLIAMSBURG @ N HARRISON ST | H59: BIORETENTION - 6" | I59: Underdrain to storm drain | J59: Stone Forebay | K59: V100-01 | L59: 585 | M59: JUL AUG SEP OCT NOV FEB APR MAY JUN | N59: 9 | O59: 0 | P59: 0 | S59: 5,265 | T59: $0.00
A60: OSEM | B60: 38.88747997 | C60: -77.10052542 | D60: 17-0253 | E60: 17271 | F60: KIRKWOOD | G60: N KIRKWOOD RD @ 13TH RD N | H60: BIORETENTION - 8.5" | I60: Underdrain to storm sewer | J60: Stone Forebay | K60: V100-01 | L60: 644 | M60: JUL AUG SEP OCT NOV FEB APR MAY JUN | N60: 9 | O60: 0 | P60: 0 | S60: 5,796 | T60: $0.00
A61: OSEM | B61: 38.87173494 | C61: -77.08391224 | D61: 18-0281A | E61: 18297 | F61: PENROSE | G61: PENROSE @2ND ST S | H61: BIORETENTION - 8" | I61: Underdrain to storm drain | J61: Stone Forebay | K61: V100-01 | L61: 340 | M61: JUL AUG SEP OCT NOV FEB APR MAY JUN | N61: 9 | O61: 0 | P61: 0 | S61: 3,060 | T61: $0.00
A62: OSEM | B62: 38.87179223 | C62: -77.08384093 | D62: 18-0281B | E62: 18297 | F62: PENROSE | G62: PENROSE @2ND ST S | H62: BIORETENTION - 9.5" | I62: Underdrain to storm drain | J62: Stone Forebay | K62: V100-01 | L62: 436 | M62: JUL AUG SEP OCT NOV FEB APR MAY JUN | N62: 9 | O62: 0 | P62: 0 | S62: 3,924 | T62: $0.00
A63: OSEM | B63: 38.89201906 | C63: -77.14117163 | D63: 18-0007 | E63: 17343 | F63: KENTUCKY | G63: N KENTUCKY ST @22ND ST N | H63: BIORETENTION - 6" | I63: Under drain to Storm drain | J63: Stone Forebay | K63: V100-01 | L63: 538 | M63: JUL AUG SEP OCT NOV FEB APR MAY JUN | N63: 9 | O63: 0 | P63: 0 | S63: 4,842 | T63: $0.00
A64: OSEM | B64: 38.883576 | C64: -77.12333 | D64: 18-0051A | E64: 18050 | F64: EVERGREEN | G64: N EVERGREEN ST @11ST N | H64: BIORETENTION - 6" | I64: Under drain to Storm drain | J64: Stone Forebay | K64: V100-01 | L64: 794 | M64: JUL AUG SEP OCT NOV FEB APR MAY JUN | N64: 9 | O64: 0 | P64: =N64*O64 -> 0 | S64: =L64*N64 -> 7,146 | T64: =P64 -> $0.00
A65: OSEM | B65: 38.88337 | C65: -77.12408 | D65: 18-0051B | E65: 18050 | F65: GEORGE MASON | G65: GEO MASON DR @11ST N | H65: BIORETENTION - 6" | I65: Under drain to Storm drain | J65: Stone Forebay | K65: V100-01 | L65: 366 | M65: JUL AUG SEP OCT NOV FEB APR MAY JUN | N65: 9 | O65: 0 | P65: 0 | S65: 3,294 | T65: $0.00
A66: OSEM | B66: 38.91916142 | C66: -77.1209718 | D66: 2014-4C | E66: 99997 | F66: GULF BRANCH NATURE CTR | G66: 3608 N MILITARY RD | H66: PERMEABLE PAVERS - OW | I66: INFILTRATION | J66: Stone Diaphragm | K66: P100-01 | L66: 2,083 | M66: MAR JULY DEC | N66: 3 | O66: 0 | P66: 0 | W66: =L66*N66 -> 6,249 | X66: =P66 -> $0.00
A67: # | D67: PLAN NAME | E67: FACILITY ID | G67: FACILITY DESCRIPTION | H67: SERVICE SPEC (LINE ITEM #) | L67: SIZE (SF) | M67: SERVICE MONTHS ** | N67: ANNUAL VISITS | O67: UNIT PRICE (PER SITE VISIT) | P67: ONE-YEAR CONTRACT PRICE | S67: TOTAL ANNUAL SF | T67: TOTAL ANNUAL COST | U67: TOTAL ANNUAL SF | V67: TOTAL ANNUAL COST | W67: TOTAL ANNUAL SF | X67: TOTAL ANNUAL COST
A68: DPR | B68: 38.894008 | C68: -77.143316 | D68: 05-969 | E68: 701310 | F68: LEE COMM CTR | G68: 5722 LEE HWY | H68: FILTERRA | I68: UNDERDRAIN | J68: FILTER STRIP | K68: V101-01 | L68: 48 | M68: AUG FEB | N68: 2 | O68: 0 | P68: =N68*O68 -> 0 | U68: =L68*N68 -> 96 | V68: =P68 -> $0.00
A69: DPR | B69: 38.858497 | C69: -77.060791 | D69: 14-1672A | E69: 1400440 | F69: VIRGINIA HIGHLANDS | G69: 1600 S HAYES ST | H69: FILTERRA | I69: UNDERDRAIN | J69: FILTER STRIP | K69: V101-01 | L69: 60 | M69: AUG FEB | N69: 2 | O69: 0 | P69: =N69*O69 -> 0 | U69: =L69*N69 -> 120 | V69: =P69 -> $0.00
A70: DPR | B70: 38.851208 | C70: -77.102953 | D70: 11-1164B | E70: 1102872 | F70: BARCROFT BASEBALL FIELD | G70: 4190 S FOUR MILE RUN DR | H70: BIORETENTION | I70: UNDERDRAINS TO DETENTION TRENCH | J70: Stone Filter Strip | K70: V100-01 | L70: 1,104 | M70: AUG OCT DEC FEB APR JUN | N70: 6 | O70: 0 | P70: 0 | S70: =L70*N70 -> 6,624 | T70: =P70 -> $0.00
A71: DPR | B71: 38.851233 | C71: -77.102735 | D71: 11-1164C | E71: 1102872 | F71: BARCROFT BASEBALL FIELD | G71: 4190 S FOUR MILE RUN DR | H71: BIORETENTION | I71: UNDERDRAINS TO DETENTION | J71: Grass Filter Strip | K71: V100-01 | L71: 304 | M71: AUG OCT DEC FEB APR JUN | N71: 6 | O71: 0 | P71: 0 | S71: =L71*N71 -> 1,824 | T71: =P71 -> $0.00
A72: DPR | B72: 38.873003 | C72: -77.085334 | D72: 10-1121 | E72: 1002905 | F72: BUTLER HOLMES PARK | G72: 101 S BARTON ST | H72: BIORETENTION | I72: UNDERDRAIN | J72: Stone Diaphragm | K72: V100-01 | L72: 450 | M72: AUG OCT DEC FEB APR JUN | N72: 6 | O72: 0 | P72: 0 | S72: 2,700 | T72: $0.00
A73: DPR | B73: 38.834501 | C73: -77.088124 | D73: 09-1100A | E73: 900335 | F73: FAIRLINGTON COMMUNITY CENTER | G73: 3308 S STAFFORD ST | H73: BIORETENTION | I73: 4" UNDERDRAINS | J73: Stone Diaphragm | K73: V100-01 | L73: 3,500 | M73: AUG OCT DEC FEB APR JUN | N73: 6 | O73: 0 | P73: 0 | S73: 21,000 | T73: $0.00
A74: DPR | B74: 38.866626 | C74: -77.076747 | D74: 12-1354B | E74: 12235 | F74: TOWERS PARK | G74: 801 S SCOTT ST | H74: BIORETENTION | I74: UNDERDRAIN | J74: Stone Diaphragm | K74: V100-01 | L74: 715 | M74: AUG OCT DEC FEB APR JUN | N74: 6 | O74: 0 | P74: 0 | S74: 4,290 | T74: $0.00
A75: DPR | B75: 38.857438 | C75: -77.087384 | D75: 02-822B | E75: 200012 | F75: WALTER REED COMMUNITY CENTER | G75: 2909 16TH ST S | H75: DRY SWALE - PLANTED | I75: UNDERDRAIN | J75: Stone Filter Strip | K75: V100-01 | L75: 2,665 | M75: AUG OCT DEC FEB APR JUN | N75: 6 | O75: 0 | P75: 0 | S75: 15,990 | T75: $0.00
A76: DPR | B76: 38.847957 | C76: -77.068734 | D76: 14-1688 | E76: 14061 | F76: GUNSTON PARK | G76: 2700 S LANG ST | H76: BIORETENTION | I76: UNDERDRAIN | J76: Stone Diaphragm | K76: V100-01 | L76: 490 | M76: AUG OCT DEC FEB APR JUN | N76: 6 | O76: 0 | P76: 0 | S76: 2,940 | T76: $0.00
A77: DPR | B77: 38.858497 | C77: -77.060791 | D77: 14-1672B | E77: 1400440 | F77: VIRGINIA HIGHLANDS | G77: 1600 S HAYES ST | H77: BIORETENTION | I77: UNDERDRAIN | J77: Stone Diaphragm | K77: V100-01 | L77: 1,200 | M77: AUG OCT DEC FEB APR JUN | N77: 6 | O77: 0 | P77: 0 | S77: 7,200 | T77: $0.00
A78: DPR | B78: 38.856543 | C78: -77.110091 | D78: 13-1541 | E78: 1200921 | F78: GLENCARLYN PARK | G78: 4955 COLUMBIA PIKE | H78: BIORETENTION | I78: Underdrain to storm sewer | J78: Stone Diaphragm | K78: V100-01 | L78: 1250 | M78: AUG OCT DEC FEB APR JUN | N78: 6 | O78: 0 | P78: 0 | S78: 7,500 | T78: $0.00
A79: DPR | B79: 38.860262 | C79: -77.117658 | D79: 15-1906A | E79: 15016 | F79: TYROL HILL PARK | G79: 5101 7TH RD S | H79: BIORETENTION | I79: Infiltration | J79: Sump Pit | K79: V100-01 | L79: 236 | M79: AUG OCT DEC FEB APR JUN | N79: 6 | O79: 0 | P79: 0 | S79: 1,416 | T79: $0.00
A80: DPR | B80: 38.896425 | C80: -77.117363 | D80: 13-1507B | E80: 1301844 | F80: WOODSTOCK PARK | G80: 2049 N WOODSTOCK ST | H80: BIORETENTION | I80: Underdrain to storm sewer | J80: Planted Forebay | K80: V100-01 | L80: 416 | M80: AUG OCT DEC FEB APR JUN | N80: 6 | O80: 0 | P80: 0 | S80: 2,496 | T80: $0.00
A81: DPR | B81: 38.892825 | C81: -77.158841 | D81: 15-1984 | E81: 15110 | F81: TUCKAHOE PARK | G81: 2400 N SYCAMORE ST | H81: BIORETENTION | I81: Underdrain to storm sewer | J81: Stone Diaphragm | K81: V100-01 | L81: 3,389 | M81: AUG OCT DEC FEB APR JUN | N81: 6 | O81: 0 | P81: 0 | S81: 20,334 | T81: $0.00
A82: DPR | B82: 38.885307 | C82: -77.105571 | D82: 15-1975A | E82: 15100 | F82: QUINCY PARK | G82: 1021 N QUINCY ST | H82: BIORETENTION | I82: Infiltration | J82: Stone Diaphragm | K82: V100-01 | L82: 639 | M82: AUG OCT DEC FEB APR JUN | N82: 6 | O82: 0 | P82: 0 | S82: 3,834 | T82: $0.00
A83: DPR | B83: 38.89043 | C83: -77.108699 | D83: 17-0007A | E83: 17001 | F83: OAKGROVE PARK | G83: 4021 17TH ST N | H83: BIORETENTION - 6" | I83: Underdrain to storm | J83: Stone Diaphragm | K83: V100-01 | L83: 1,050 | M83: AUG OCT DEC FEB APR JUN | N83: 6 | O83: 0 | P83: 0 | S83: 6,300 | T83: $0.00
A84: DPR | B84: 38.88898455 | C84: -77.14135615 | D84: 08-1062A | E84: 912 | F84: PARKHURST PARK | G84: 5820 20TH R N | H84: BIORETENTION - 6" | I84: Underdrain to storm | J84: Stone Forebay | K84: V100-01 | L84: 1,000 | M84: AUG OCT DEC FEB APR JUN | N84: 6 | O84: 0 | P84: 0 | S84: 6,000 | T84: $0.00
A85: DPR | B85: 38.86906039 | C85: -77.12881784 | D85: 15-2066A | E85: 15195 | F85: PNR MAINTENANCE BUILDING | G85: 308 N KENSINGTON ST | H85: SW PLANTER | I85: Underdrain to Infiltration | J85: Stone Diaphragm | K85: V100-01 | L85: 135 | M85: AUG FEB | N85: 2 | O85: 0 | P85: 0 | S85: 270 | T85: $0.00
A86: DPR | B86: 38.86899156 | C86: -77.12869579 | D86: 15-2066B | E86: 15195 | F86: PNR MAINTENANCE BUILDING | G86: 308 N KENSINGTON ST | H86: INFILTRATION TRENCH - GRASS | I86: Infiltration | J86: Planter Box | K86: V100-01 | L86: 840 | M86: AUG | N86: 1 | O86: 0 | P86: 0 | S86: 840 | T86: $0.00
A87: DPR | B87: 38.85122527 | C87: -77.10313748 | D87: 17-0174B | E87: 17280 | F87: BARCROFT BASEBALL FIELD | G87: 4190 S FOUR MILE RUN DR | H87: SW PLANTER - 6" | I87: Underdrain to storm sewer | J87: Stone Diaphragm | K87: V100-01 | L87: 147 | M87: AUG | N87: 1 | O87: 0 | P87: 0 | S87: 147 | T87: $0.00
A88: DPR | B88: 38.87295499 | C88: -77.13943102 | D88: 17-0299A | E88: 17338 | F88: POWHATAN SPRINGS PARK | G88: 6020 WILSON BLVD | H88: BIORETENTION - 6" | I88: Underdrain to detention | J88: Stone Diaphragm | K88: V100-01 | L88: 950 | M88: AUG OCT DEC FEB APR JUN | N88: 6 | O88: 0 | P88: =N88*O88 -> 0 | S88: 5,700 | T88: $0.00
A89: DPR | B89: 38.83539877 | C89: -77.08682932 | D89: 17-0094A | E89: 17095 | F89: FAIRLINGTON COMMUNITY CENTER | G89: 3308 S STAFFORD ST | H89: DRY SWALE - GRASS | I89: Underdrain to daylight | K89: V100-01 | L89: 585 | M89: AUG | N89: 1 | O89: 0 | P89: 0 | S89: 585 | T89: $0.00
A90: DPR | B90: 38.860134 | C90: -77.117628 | D90: 15-1906B | E90: 15016 | F90: TYROL HILL PARK | G90: 5101 7TH RD S | H90: POROUS PAVE* - OW | I90: Infiltration | K90: P100-01 | L90: 1,798 | M90: MAR | N90: 1 | O90: 0 | P90: 0 | W90: =L90*N90 -> 1,798 | X90: =P90 -> $0.00
A91: DPR | B91: 38.859427 | C91: -77.118317 | D91: 16-0308A | E91: 17090 | F91: TYROL HILL PARK | G91: 5101 7TH RD S | H91: PERMEABLE PAVERS - OW | I91: Underdrain | K91: P100-01 | L91: 14,810 | M91: MAR JULY DEC | N91: 3 | O91: 0 | P91: 0 | W91: =L91*N91 -> 44,430 | X91: =P91 -> $0.00
A92: DPR | B92: 38.859926 | C92: -77.11818 | D92: 16-0308B | E92: 17090 | F92: TYROL HILL PARK | G92: 5101 7TH RD S | H92: SYNTHETIC TURF* - OW | I92: Underdrain | K92: P100-01 | L92: 3,742 | M92: MAR | N92: 1 | O92: 0 | P92: 0 | W92: 3,742 | X92: $0.00
A93: DPR | B93: 38.896546 | C93: -77.118008 | D93: 13-1507A | E93: 1301844 | F93: WOODSTOCK PARK | G93: 2049 N WOODSTOCK ST | H93: FLEXI-PAVE* | I93: Infiltration | K93: P100-01 | L93: 2,935 | M93: MAR | N93: 1 | O93: 0 | P93: 0 | W93: 2,935 | X93: $0.00
A94: DPR | B94: 38.887224 | C94: -77.087432 | D94: 12-1214A | E94: 1202002 | F94: ROCKY RUN PARK | G94: 1109 N BARTON ST | H94: FLEXI-PAVE* - OW | I94: Infiltration | K94: P100-01 | L94: 4,710 | M94: MAR | N94: 1 | O94: 0 | P94: 0 | W94: 4,710 | X94: $0.00
A95: DPR | B95: 38.872914 | C95: -77.08522 | D95: 15-1927 | E95: 15044 | F95: BUTLER HOLMES PARK | G95: 101 S BARTON ST | H95: FLEXI-PAVE* | I95: Infiltration | K95: P100-01 | L95: 1,794 | M95: MAR | N95: 1 | O95: 0 | P95: 0 | W95: 1,794 | X95: $0.00
A96: DPR | B96: 38.890649 | C96: -77.075128 | D96: 12-3000 | E96: 1200609 | F96: FORT MYER HEIGHTS PARK | G96: 1400 N FORT MYER DR | H96: SYNTHETIC TURF* | I96: UNDERDRAIN TO DRAIN PIT TO POP-UP EMITTER | K96: P100-01 | L96: 3,000 | M96: MAR | N96: 1 | O96: 0 | P96: 0 | W96: 3,000 | X96: $0.00
A97: DPR | B97: 38.86807165 | C97: -77.04481186 | D97: 08-1065 | E97: 918 | F97: LONG BRIDGE PARK | G97: 475 LONG BRIDGE DR | H97: PERVIOUS CONCRETE | I97: Infiltration | K97: P100-01 | L97: 8,570 | M97: MAR JULY DEC | N97: 3 | O97: 0 | P97: 0 | W97: 25,710 | X97: $0.00
A98: DPR | B98: 38.89369422 | C98: -77.12716693 | D98: 15-2094A | E98: 16054 | F98: HIGH VIEW PARK | G98: 1945 N DINWIDDIE ST | H98: PERMEABLE PAVERS - OW | I98: Underdrain to storm | K98: P100-01 | L98: 4,879 | M98: MAR JULY DEC | N98: 3 | O98: 0 | P98: 0 | W98: 14,637 | X98: $0.00
A99: DPR | B99: 38.83539877 | C99: -77.08682932 | D99: 17-0094A | E99: 17095 | F99: FAIRLINGTON COMMUNITY CENTER | G99: 3308 S STAFFORD ST | H99: SYNTHETIC TURF - RIGHT SIDE* | I99: Underdrain to daylight | K99: P100-01 | L99: 4,796 | M99: MAR | N99: 1 | O99: 0 | P99: 0 | W99: 4,796 | X99: $0.00
A100: DPR | B100: 38.83539046 | C100: -77.08732688 | D100: 17-0094B | E100: 17095 | F100: FAIRLINGTON COMMUNITY CENTER | G100: 3308 S STAFFORD ST | H100: SYNTHETIC TURF - LEFT SIDE* | I100: Underdrain to daylight | K100: P100-01 | L100: 5,715 | M100: MAR | N100: 1 | O100: 0 | P100: 0 | W100: 5,715 | X100: $0.00
A101: DPR | B101: 38.83535705 | C101: -77.08704592 | D101: 17-0094C | E101: 17095 | F101: FAIRLINGTON COMMUNITY CENTER | G101: 3308 S STAFFORD ST | H101: FILTER PAVE* | I101: Underdrain to daylight | K101: P100-01 | L101: 2,933 | M101: MAR | N101: 1 | O101: 0 | P101: 0 | W101: 2,933 | X101: $0.00
A102: DPR | B102: 38.869698 | C102: -77.134053 | D102: 17-0273 | E102: 17298 | F102: REEVES FARM | G102: 400 N MANCHESTER ST | H102: PERMEABLE PAVERS - OW | I102: Underdrain to daylight | K102: P100-01 | L102: 540 | M102: MAR JULY DEC | N102: 3 | O102: 0 | P102: 0 | W102: 1,620 | X102: $0.00
A103: DPR | B103: 38.846913 | C103: -77.070403 | D103: 17-0223A | E103: 17249 | F103: GUNSTON PARK | G103: 1401 28TH ST S | H103: SYNTHETIC TURF* - OW | I103: Underdrain to storm | K103: P100-01 | L103: 77,045 | M103: MAR | N103: 1 | O103: 0 | P103: 0 | W103: 77,045 | X103: $0.00
H104: *inspection only | N104: =SUM(N12:N103) -> 470 | P104: =SUM(P12:P103) -> 0 | S104: =SUM(S12:S103) -> 300,483 | T104: =SUM(T12:T103) -> $0.00 | U104: 360 | V104: $0.00 | W104: 249,915 | X104: $0.00
A105: ** RED DENOTES MONTH OF INSPECTION WITH INSPECTION REPORT DUE BY THE 15TH OF THE MONTH FOLLOWING INSPECTION; MAINTENANCE SHALL BE COMPLETED CONCURRENTLY OR WITHIN 30 DAYS OF INSPECTION. | S105: sf | T105: annual cost | U105: sf | V105: annual cost | W105: sf | X105: annual cost
H107: ROUTINE LINE ITEMS AND SUMMARY TABLE
H108: NO. | I108: ITEM | L108: UNIT | M108: UNIT PRICE | N108: ANNUAL FACTOR | O108: TOTAL ANNUAL PRICE
H109: LINE ITEM | I109: BIORETENTION - ROUTINE SERVICES | N109: (VARIES)
H110: V100-01 | I110: Bioretention - Routine Inspection & Maintenance | L110: SF | M110: --- | N110: =S104 -> 300,483 | O110: =T104 -> 0
H111: V100-02 | I111: Bioretention - Mulch Replacement (Supplied by County) | L111: CY | M111: 0 | N111: =N110*0.167/27 -> 1,858.5 | O111: =M111*N111 -> 0
H112: V100-03 | I112: Bioretention - Mulch Replacement (Supplied by Contractor) | L112: CY | M112: 0 | N112: =N110*0.167/27 -> 1,858.5 | O112: =M112*N112 -> 0
I113: FILTERRA - ROUTINE SERVICES
H114: V101-01 | I114: Filterra - Routine Inspection & Maintenance | L114: SF | M114: --- | N114: =U104 -> 360 | O114: =V104 -> 0
H115: V101-02 | I115: Filterra - Mulch Replacement (Supplied by County) | L115: CY | M115: 0 | N115: =N114*0.167/27 -> 2.2 | O115: =M115*N115 -> 0
I116: PERMEABLE PAVEMENT - ROUTINE SERVICES
H117: P100-01 | I117: Permeable Pavement - Routine Inspection & Maintenance | L117: SF | M117: --- | N117: =W104 -> 249,915 | O117: =X104 -> 0
K118: TOTAL BID PRICE - Autopopulates in Bid Form | O118: =SUM(O110:O117) -> 0

Sheet Sch B
A1: STORMWATER MANAGEMENT FACILITIES
A2: SCHEDULE B - UNIT PRICES FOR AS-NEEDED SERVICES
A4: FURNISHING ALL LABOR, MATERIALS, EQUIPMENT, DISPOSAL & HAUL FOR THE INSPECTION & MAINTENANCE
A5: OF COUNTY-OWNED STORMWATER MANAGEMENT FACILITIES IN ARLINGTON, VIRGINIA
A7: CONTRACTOR: PLEASE PROVIDE PRICES IN ALL CELLS HIGHLIGHTED IN BLUE
A9: SCHEDULE B - UNIT PRICES FOR AS-NEEDED SERVICES
A10: NO. | B10: ITEM | C10: UNIT | D10: UNIT PRICE | E10: ANNUAL FACTOR | F10: TOTAL PRICE
A11: LINE ITEM | B11: BIORETENTION - AS-NEEDED SERVICES | E11: VARIES
A12: V100-04 | B12: Bioretention - Filter Media (Soil) Replenishment * | C12: CY | E12: 10 | F12: =D12*E12 -> 0
B13: Bioretention - Stone Replenishment (Major)
A14: V100-05 | B14: Furnish, Deliver & Install - Washed River Rock 3-6" | C14: TN | D14: 0 | E14: 20 | F14: =D14*E14 -> 0
A15: V100-06 | B15: Furnish, Deliver & Install - Washed River Rock 5-8" | C15: TN | D15: 0 | E15: 20 | F15: 0
A16: V100-07 | B16: Furnish, Deliver & Install - Pea Gravel | C16: TN | D16: 0 | E16: 20 | F16: 0
A17: V100-08 | B17: Furnish, Deliver & Install - #57 Stone | C17: TN | D17: 0 | E17: 20 | F17: 0
A18: V100-09A | B18: Furnish, Deliver & Install - Class A1 Riprap 4-8” | C18: TN | D18: 0 | E18: 15 | F18: 0
A19: V100-09B | B19: Furnish, Deliver & Install - Class 1 Riprap | C19: TN | D19: 0 | E19: 15 | F19: =D19*E19 -> 0
A20: V100-09C | B20: Furnish, Deliver & Install - AASHTO 31 Surge Stone | C20: TN | D20: 0 | E20: 15 | F20: 0
A21: V100-10 | B21: Bioretention - Geotextile Filter Fabric (Non-Woven) | C21: SF | D21: 0 | E21: 300 | F21: 0
A22: V100-11 | B22: NOT USED
B23: Bioretention - Plant Replacement - Contractor Supplied
A24: V100-12 | B24: Furnish, Deliver & Install - Med/Lg Tree (2-2.5" Cal) | C24: EA | D24: 0 | E24: 30 | F24: =D24*E24 -> 0
A25: V100-13 | B25: Furnish, Deliver & Install - Small Tree (1-1.5" Cal) | C25: EA | D25: 0 | E25: 40 | F25: 0
A26: V100-14 | B26: Furnish, Deliver & Install - Shrub (5 Gal) | C26: EA | D26: 0 | E26: 30 | F26: 0
A27: V100-15 | B27: Furnish, Deliver & Install - Shrub (3 Gal) | C27: EA | D27: 0 | E27: 40 | F27: 0
A28: V100-16 | B28: Furnish, Deliver & Install - Perennial (1 Gal) | C28: EA | D28: 0 | E28: 2,000 | F28: 0
A29: V100-17 | B29: Furnish, Deliver & Install - Perennial (1 Qt) | C29: EA | D29: 0 | E29: 300 | F29: 0
A30: V100-18 | B30: Furnish, Deliver & Install - Perennial Landscape (Deep) Plugs (must be a minimum 4” deep) | C30: EA | D30: 0 | E30: 480 | F30: 0
A31: V100-19 | B31: Furnish, Deliver & Install - Whips - 18-24” Bareroot Woody Seedlings | C31: EA | D31: 0 | E31: 500 | F31: 0
B32: Bioretention - Plant Replacement - County Supplied
A33: V100-20 | B33: Plant - Med/Lg Tree (2-2.5" Cal) | C33: EA | D33: 0 | E33: 30 | F33: =D33*E33 -> 0
A34: V100-21 | B34: Plant - Small Tree (1-1.5" Cal) | C34: EA | D34: 0 | E34: 40 | F34: =D34*E34 -> 0
A35: V100-22 | B35: Plant - Shrub (5 Gal) | C35: EA | D35: 0 | E35: 30 | F35: =D35*E35 -> 0
A36: V100-23 | B36: Plant - Shrub (3 Gal) | C36: EA | D36: 0 | E36: 40 | F36: =D36*E36 -> 0
A37: V100-24 | B37: Plant - Perennial (1 Gal) | C37: EA | D37: 0 | E37: 2,000 | F37: 0
A38: V100-25 | B38: Plant - Perennial (1 Qt) | C38: EA | D38: 0 | E38: 300 | F38: =D38*E38 -> 0
A39: V100-26 | B39: Plant - Perennial Landscape (Deep) Plugs (must be a minimum 4” deep) | C39: EA | D39: 0 | E39: 480 | F39: =D39*E39 -> 0
A40: V100-27 | B40: Plant - Whips - 18-24” Bareroot Woody Seedlings | C40: EA | D40: 0 | E40: 500 | F40: 0
A41: V100-28 | B41: Bioretention - Additional Watering | C41: HR | D41: 0 | E41: 40 | F41: 0
A42: V100-29 | B42: Bioretention - Furnish & Install Sod for Turf Establishment | C42: SY | D42: 0 | E42: 800 | F42: 0
A44: LINE ITEM | B44: FILTERRA - AS-NEEDED SERVICES | E44: VARIES
A45: V101-03 | B45: Filterra - Filter Media Replenishment | C45: CY | D45: 0 | E45: 1 | F45: 0
A47: LINE ITEM | B47: PERMEABLE PAVEMENT - AS-NEEDED SERVICES
A48: P100-02 | B48: 3/8” Aggregate Replenishment (for an average of 2” New Aggregate) | C48: TN | D48: 0 | E48: 15 | F48: =D48*E48 -> 0
A49: P100-03 | B49: Permeable Pavement Weeding | C49: HR | D49: 0 | E49: 16 | F49: =D49*E49 -> 0
A50: P100-04 | B50: Infiltration Testing | C50: EA | D50: 0 | E50: 8 | F50: =D50*E50 -> 0
A52: LINE ITEM | B52: OTHER - AS-NEEDED SERVICES | E52: VARIES
A53: V102-03 | B53: Excessive Sediment/Silt Removal and Disposal | C53: CY | D53: 0 | E53: 20 | F53: =D53*E53 -> 0
B54: SITE STABILIZATION
A55: V102-07 | B55: Furnish & Install Topsoil | C55: CY | D55: 0 | E55: 25 | F55: =D55*E55 -> 0
B56: Furnish & Install Seed for Turf Establishment
A57: V102-09 | B57: Seed Mix 50% K-31; 50% Annual Rye | C57: SY | D57: 0 | E57: 1,500 | F57: =D57*E57 -> 0
A58: V102-10 | B58: Seed Mix 75% K-31 and 25% Annual Rye | C58: LB | D58: 0 | E58: 30 | F58: 0
A59: V102-11 | B59: Application of Wetland Seed Mix – Ernst Seed #120 | C59: LB | D59: 0 | E59: 40 | F59: 0
A60: V102-12 | B60: Application of Wetland Seed Mix – Ernst Seed #131 | C60: LB | D60: 0 | E60: 40 | F60: 0
A61: V102-13 | B61: Furnish & Install Straw Mulch | C61: SY | D61: 0 | E61: 800 | F61: 0
B62: SEDIMENT & EROSION CONTROLS
A63: V102-24 | B63: Furnish & Install Curlex NetFree (or Approved Synthetic Material Free Equal) | C63: SY | D63: 0 | E63: 300 | F63: =D63*E63 -> 0
B64: VEGETATION MANAGEMENT
A65: V102-26 | B65: Tree Removal (2"-4") | C65: EA | D65: 0 | E65: 36 | F65: 0
A66: V102-27 | B66: Weeding | C66: HR | D66: 0 | E66: 36 | F66: 0
B67: MISCELLANEOUS
A68: V102-30 | B68: Repairs from Burrowing Animals | C68: SY | D68: 0 | E68: 200 | F68: =D68*E68 -> 0
A69: V102-33 | B69: Ponds - Rubber-Tracked Skid Steer Loader (Small) | C69: HR | D69: 0 | E69: 40 | F69: 0
A70: V102-34 | B70: Ponds - Rubber-Tracked Compact / Mini Excavator | C70: HR | D70: 0 | E70: 60 | F70: 0
A71: V102-35 | B71: Ponds - Rubber-Tired Front-End Loader/Backhoe | C71: HR | D71: 0 | E71: 60 | F71: 0
A72: TOTAL BID PRICE - Autopopulates in Bid Form | F72: =SUM(F11:F71) -> 0
A74: LABOR RATES - HOURLY & OVERTIME/EMERGENCY (O/E)
A75: CODE | B75: POSITION | C75: UNIT | D75: UNIT PRICE | E75: ANNUAL FACTOR | F75: TOTAL PRICE
A76: CF | B76: Crew Foreman/Inspector | C76: HR | D76: 0 | E76: 16 | F76: =D76*E76 -> 0
A77: CF-O/E | B77: Crew Foreman/Inspector - Overtime/Emergency * | C77: HR | D77: 0 | E77: 8 | F77: 0
A78: LAB | B78: Laborer | C78: HR | D78: 0 | E78: 16 | F78: 0
A79: LAB-O/E | B79: Laborer - Overtime/Emergency * | C79: HR | D79: 0 | E79: 8 | F79: 0
A80: FLAG | B80: VDOT Certified Flagger | C80: HR | D80: 0 | E80: 16 | F80: 0
A81: FLAG-O/E | B81: VDOT Certified Flagger - Overtime/Emergency * | C81: HR | D81: 0 | E81: 8 | F81: 0
A82: ARB | B82: Certified Arborist | C82: HR | D82: 0 | E82: 16 | F82: 0
A83: ARB-O/E | B83: Certified Arborist - Overtime/Emergency * | C83: HR | D83: 0 | E83: 8 | F83: 0
A84: TOTAL BID PRICE - Autopopulates in Bid Form | F84: =SUM(F76:F83) -> 0
B85: * Over 8 Hours of Consecutive Work

Sheet Sch C
A1: STORMWATER MANAGEMENT FACILITIES
A2: SCHEDULE C - FUTURE FACILITIES MAINTENANCE PRICING SHEET
A4: FURNISHING ALL LABOR, MATERIALS, EQUIPMENT, DISPOSAL & HAUL FOR THE INSPECTION & MAINTENANCE OF COUNTY-OWNED STORMWATER MANAGEMENT FACILITIES IN ARLINGTON, VIRGINIA
A6: NOTE TO CONTRACTORS: DO NOT COMPLETE THIS FORM -- THE AMOUNTS BELOW (in grey) ARE AUTOMATICALLY POPULATED FROM SCHEDULE A
A8: SCHEDULE C - FUTURE FACILITIES MAINTENANCE PRICING SHEET (COSTS FROM SCHEDULE A)
A9: FACILITY ID | B9: FACILITY LOCATION | C9: FACILITY DESCRIPTION | D9: SIZE (SF) | E9: UNIT PRICE (PER SITE VISIT) | F9: AVG COST (PER UNIT PER SITE VISIT)
A10: BIORETENTION
A11: 89-362 | B11: CENTRAL LIBRARY | C11: POND w/CONCRETE SWALE - GRASS | D11: 4,570 | E11: ='Sch A'!$O$15 -> 0
A12: 03-872A | B12: FIRE STATION #5 | C12: BIORETENTION | D12: 225 | E12: ='Sch A'!$O$16 -> 0
A13: 07-1069B | B13: WOODMONT COMM CTR | C13: BIORETENTION W/STORMCHAMBER | D13: 943 | E13: ='Sch A'!$O$17 -> 0
A14: 15-2115A | B14: FIRE STATION HOUSE | C14: SW PLANTER 1 - 9" | D14: 32 | E14: ='Sch A'!$O$18 -> 0
A15: 15-2115B | B15: FIRE STATION HOUSE | C15: INFILTRATION TRENCH - GRAVEL | D15: 32 | E15: ='Sch A'!$O$19 -> 0
A16: 2012-3 | B16: WEENIE BEENIE | C16: DRY SWALE - GRASS | D16: 325 | E16: ='Sch A'!$O$29 -> 0
A17: 2014-4A | B17: GULF BRANCH NATURE CTR | C17: SW PLANTER - 3" | D17: 175 | E17: ='Sch A'!$O$30 -> 0
A18: 2014-4B | B18: GULF BRANCH NATURE CTR | C18: SW PLANTER - 3" | D18: 60 | E18: ='Sch A'!$O$31 -> 0
A19: 2014-5A | B19: PENTAGON CITY | C19: SW PLANTER | D19: 100 | E19: ='Sch A'!$O$32 -> 0
A20: 2014-5B | B20: PENTAGON CITY | C20: SW PLANTER | D20: 100 | E20: ='Sch A'!$O$33 -> 0
A21: 2014-5C | B21: PENTAGON CITY | C21: SW PLANTER | D21: 100 | E21: ='Sch A'!$O$34 -> 0
A22: 2014-5D | B22: PENTAGON CITY | C22: SW PLANTER | D22: 100 | E22: ='Sch A'!$O$35 -> 0
A23: 2014-5E | B23: PENTAGON CITY | C23: SW PLANTER | D23: 100 | E23: ='Sch A'!$O$36 -> 0
A24: 2014-5F | B24: PENTAGON CITY | C24: SW PLANTER | D24: 50 | E24: ='Sch A'!$O$37 -> 0
A25: 2014-5G | B25: PENTAGON CITY | C25: SW PLANTER | D25: 50 | E25: ='Sch A'!$O$38 -> 0
A26: 2014-5H | B26: PENTAGON CITY | C26: SW PLANTER | D26: 50 | E26: ='Sch A'!$O$39 -> 0
A27: 2014-5I | B27: PENTAGON CITY | C27: SW PLANTER | D27: 50 | E27: ='Sch A'!$O$40 -> 0
A28: 2014-5J | B28: PENTAGON CITY | C28: SW PLANTER | D28: 50 | E28: ='Sch A'!$O$41 -> 0
A29: 2014-5K | B29: PENTAGON CITY | C29: SW PLANTER | D29: 50 | E29: ='Sch A'!$O$42 -> 0
A30: 2014-5L | B30: PENTAGON CITY | C30: BIORETENTION | D30: 1,548 | E30: ='Sch A'!$O$43 -> 0
A31: 2015-6 | B31: 8TH ST S | C31: BIORETENTION | D31: 609 | E31: ='Sch A'!$O$44 -> 0
A32: 2012-2 | B32: N ALBEMARLE ST | C32: BIORETENTION | D32: 578 | E32: ='Sch A'!$O$45 -> 0
A33: 2011-1A | B33: PATRICK HENRY DRIVE | C33: BIORETENTION | D33: 823 | E33: ='Sch A'!$O$46 -> 0
A34: 2011-1B | B34: PATRICK HENRY DRIVE | C34: BIORETENTION | D34: 253 | E34: ='Sch A'!$O$47 -> 0
A35: 15-1926 | B35: PATRICK HENRY DRIVE | C35: BIORETENTION | D35: 470 | E35: ='Sch A'!$O$48 -> 0
A36: 16-0103 | B36: 26TH ST LEAF STORAGE SITE | C36: BIORETENTION | D36: 1,730 | E36: ='Sch A'!$O$49 -> 0
A37: 15-2067A | B37: 11ST N PARK | C37: BIORETENTION | D37: 201 | E37: ='Sch A'!$O$50 -> 0
A38: 15-2067B | B38: 11ST N PARK | C38: BIORETENTION | D38: 88 | E38: ='Sch A'!$O$51 -> 0
A39: 15-1971A | B39: JOHN MARSHALL DR | C39: BIORETENTION - 12" | D39: 2,245 | E39: ='Sch A'!$O$52 -> 0
A40: 15-1971B | B40: JOHN MARSHALL DR | C40: BIORETENTION - 12" | D40: 865 | E40: ='Sch A'!$O$53 -> 0
A41: 15-1971C | B41: N KENSINGTON ST | C41: BIORETENTION - 6" | D41: 610 | E41: ='Sch A'!$O$54 -> 0
A42: 15-1971D | B42: 32ND ST N | C42: BIORETENTION - 6" | D42: 555 | E42: ='Sch A'!$O$55 -> 0
A43: 15-2091A | B43: WILLIAMSBURG | C43: BIORETENTION - 12" | D43: 1,598 | E43: ='Sch A'!$O$56 -> 0
A44: 15-2091B | B44: WILLIAMSBURG | C44: BIORETENTION - 12" | D44: 1,595 | E44: ='Sch A'!$O$57 -> 0
A45: 16-0320A | B45: WILLIAMSBURG | C45: BIORETENTION - 6" | D45: 906 | E45: ='Sch A'!$O$58 -> 0
A46: 16-0320B | B46: WILLIAMSBURG | C46: BIORETENTION - 6" | D46: 585 | E46: ='Sch A'!$O$59 -> 0
A47: 17-0253 | B47: KIRKWOOD | C47: BIORETENTION - 8.5" | D47: 644 | E47: ='Sch A'!$O$60 -> 0
A48: 18-0281A | B48: PENROSE | C48: BIORETENTION - 8" | D48: 340 | E48: ='Sch A'!$O$61 -> 0
A49: 18-0281B | B49: PENROSE | C49: BIORETENTION - 9.5" | D49: 436 | E49: ='Sch A'!$O$62 -> 0
A50: 18-0007 | B50: KENTUCKY | C50: BIORETENTION - 6" | D50: 538 | E50: ='Sch A'!$O$63 -> 0
A51: 18-0051A | B51: EVERGREEN | C51: BIORETENTION - 6" | D51: 794 | E51: ='Sch A'!$O$64 -> 0
A52: 18-0051B | B52: GEORGE MASON | C52: BIORETENTION - 6" | D52: 366 | E52: ='Sch A'!$O$65 -> 0
A53: 11-1164B | B53: BARCROFT BASEBALL FIELD | C53: BIORETENTION | D53: 1,104 | E53: ='Sch A'!$O$70 -> 0
A54: 11-1164C | B54: BARCROFT BASEBALL FIELD | C54: BIORETENTION | D54: 304 | E54: ='Sch A'!$O$71 -> 0
A55: 10-1121 | B55: BUTLER HOLMES PARK | C55: BIORETENTION | D55: 450 | E55: ='Sch A'!$O$72 -> 0
A56: 09-1100A | B56: FAIRLINGTON COMM CTR | C56: BIORETENTION | D56: 3,500 | E56: ='Sch A'!$O$73 -> 0
A57: 12-1354B | B57: TOWERS PARK | C57: BIORETENTION | D57: 715 | E57: ='Sch A'!$O$74 -> 0
A58: 02-822B | B58: WALTER REED COMM CTR | C58: DRY SWALE - PLANTED | D58: 2,665 | E58: ='Sch A'!$O$75 -> 0
A59: 14-1688 | B59: GUNSTON PARK | C59: BIORETENTION | D59: 490 | E59: ='Sch A'!$O$76 -> 0
A60: 14-1672B | B60: VIRGINIA HIGHLANDS | C60: BIORETENTION | D60: 1,200 | E60: ='Sch A'!$O$77 -> 0
A61: 13-1541 | B61: GLENCARLYN PARK | C61: BIORETENTION | D61: 1250 | E61: ='Sch A'!$O$78 -> 0
A62: 15-1906A | B62: TYROL HILL PARK | C62: BIORETENTION | D62: 236 | E62: ='Sch A'!$O$79 -> 0
A63: 13-1507B | B63: WOODSTOCK PARK | C63: BIORETENTION | D63: 416 | E63: ='Sch A'!$O$80 -> 0
A64: 15-1984 | B64: TUCKAHOE PARK | C64: BIORETENTION | D64: 3,389 | E64: ='Sch A'!$O$81 -> 0
A65: 15-1975A | B65: QUINCY PARK | C65: BIORETENTION | D65: 639 | E65: ='Sch A'!$O$82 -> 0
A66: 17-0007A | B66: OAKGROVE PARK | C66: BIORETENTION - 6" | D66: 1,050 | E66: ='Sch A'!$O$83 -> 0
A67: 08-1062 | B67: PARKHURST PARK | C67: BIORETENTION - 6" | D67: 1,000 | E67: ='Sch A'!$O$84 -> 0
A68: 15-2066A | B68: PNR MAINTENANCE BUILDING | C68: SW PLANTER | D68: 135 | E68: ='Sch A'!$O$85 -> 0
A69: 15-2066B | B69: PNR MAINTENANCE BUILDING | C69: INFILTRATION TRENCH - GRASS | D69: 840 | E69: ='Sch A'!$O$86 -> 0
A70: 17-0174B | B70: BARCROFT BASEBALL FIELD | C70: SW PLANTER - 6" | D70: 147 | E70: ='Sch A'!$O$87 -> 0
A71: 17-0299A | B71: POWHATAN SPRINGS PARK | C71: BIORETENTION - 6" | D71: 950 | E71: ='Sch A'!$O$88 -> 0
A72: 17-0094A | B72: FAIRLINGTON COMMUNITY CENTER | C72: DRY SWALE - GRASS | D72: 585 | E72: ='Sch A'!$O$89 -> 0
D73: =SUM(D11:D72) -> 46,604 | E73: =SUM(E11:E72) -> 0 | F73: =E73/D73 -> 0
A75: FILTERRA
A76: 08-1079D | B76: ARL MILL COMM CTR | C76: FILTERRA | D76: 24 | E76: ='Sch A'!$O$12 -> 0
A77: 03-872B | B77: FIRE STATION #5 | C77: FILTERRA | D77: 24 | E77: ='Sch A'!$O$13 -> 0
A78: 03-872C | B78: FIRE STATION #5 | C78: FILTERRA | D78: 24 | E78: ='Sch A'!$O$14 -> 0
A79: 05-969 | B79: LEE COMM CTR | C79: FILTERRA | D79: 48 | E79: ='Sch A'!$O$68 -> 0
A80: 14-1672A | B80: VIRGINIA HIGHLANDS | C80: FILTERRA | D80: 60 | E80: ='Sch A'!$O$69 -> 0
D81: =SUM(D76:D80) -> 180 | E81: =SUM(E76:E80) -> 0 | F81: =E81/D81 -> 0
A83: PERMEABLE PAVEMENT
A84: 08-1079B | B84: ARL MILL COMM CTR | C84: PERMEABLE PAVERS - OW | D84: 8,276 | E84: ='Sch A'!$O$20 -> 0
A85: 06-1022D | B85: FIRE STATION #3 | C85: PERMEABLE PAVERS | D85: 2,200 | E85: ='Sch A'!$O$21 -> 0
A86: 03-872D | B86: FIRE STATION #5 | C86: OPEN BLOCK PERMEABLE PAVERS | D86: 2,830 | E86: ='Sch A'!$O$22 -> 0
A87: 13-1522 | B87: FIRE STATION #9 | C87: PAVE DRAIN PERM PAVERS - OW | D87: 1,730 | E87: ='Sch A'!$O$23 -> 0
A88: 18-0156A | B88: FACILITY - HEAD START A | C88: SYNTHETIC TURF* - OW | D88: 645 | E88: ='Sch A'!$O$24 -> 0
A89: 18-0156B | B89: FACILITY - HEAD START B | C89: SYNTHETIC TURF* - OW | D89: 1,470 | E89: ='Sch A'!$O$25 -> 0
A90: 18-0156C | B90: FACILITY - HEAD START C | C90: SYNTHETIC TURF* - OW | D90: 1,578 | E90: ='Sch A'!$O$26 -> 0
A91: 2014-4C | B91: GULF BRANCH NATURE CTR | C91: PERMEABLE PAVERS - OW | D91: 2,083 | E91: ='Sch A'!$O$66 -> 0
A92: 15-1906B | B92: TYROL HILL PARK | C92: POROUS PAVE* - OW | D92: 1,798 | E92: ='Sch A'!$O$90 -> 0
A93: 16-0308A | B93: TYROL HILL PARK | C93: PERMEABLE PAVERS - OW | D93: 14,810 | E93: ='Sch A'!$O$91 -> 0
A94: 16-0308B | B94: TYROL HILL PARK | C94: SYNTHETIC TURF* - OW | E94: ='Sch A'!$O$92 -> 0
A95: 13-1507A | B95: WOODSTOCK PARK | C95: FLEXI-PAVE* | D95: 2,935 | E95: ='Sch A'!$O$93 -> 0
A96: 12-1214A | B96: ROCKY RUN PARK | C96: FLEXI-PAVE* - OW | D96: 4,710 | E96: ='Sch A'!$O$94 -> 0
A97: 15-1927 | B97: BUTLER HOLMES PARK | C97: FLEXI-PAVE* | D97: 1,794 | E97: ='Sch A'!$O$95 -> 0
A98: 12-3000 | B98: FORT MYER HEIGHTS PARK | C98: SYNTHETIC TURF* | D98: 3,000 | E98: ='Sch A'!$O$96 -> 0
A99: 08-1065 | B99: LONG BRIDGE PARK | C99: PERVIOUS CONCRETE | D99: 8,570 | E99: ='Sch A'!$O$97 -> 0
A100: 15-2094A | B100: HIGH VIEW PARK | C100: PERMEABLE PAVERS - OW | D100: 4,879 | E100: ='Sch A'!$O$98 -> 0
A101: 17-0094A | B101: FAIRLINGTON COMMUNITY CENTER | C101: SYNTHETIC TURF - RIGHT SIDE* | D101: 4,796 | E101: ='Sch A'!$O$99 -> 0
A102: 17-0094B | B102: FAIRLINGTON COMMUNITY CENTER | C102: SYNTHETIC TURF - LEFT SIDE* | D102: 5,715 | E102: ='Sch A'!$O$100 -> 0
A103: 17-0094C | B103: FAIRLINGTON COMMUNITY CENTER | C103: FILTER PAVE* | D103: 2,933 | E103: ='Sch A'!$O$101 -> 0
A104: 17-0273 | B104: REEVES FARM | C104: PERMEABLE PAVERS - OW | D104: 540 | E104: ='Sch A'!$O$102 -> 0
A105: 17-0223A | B105: GUNSTON PARK | C105: SYNTHETIC TURF* - OW | D105: 77,045 | E105: ='Sch A'!$O$103 -> 0
D106: =SUM(D84:D105) -> 154,337 | E106: =SUM(E84:E105) -> 0 | F106: =E106/D106 -> 0

Sheet Bid Tabulation
A1: STORMWATER MANGAGEMENT FACILITIES
A2: BID TABULATION
A4: NOTE TO CONTRACTORS: DO NOT COMPLETE THIS FORM -- THE AMOUNTS BELOW (in grey) ARE AUTOMATICALLY POPULATED FROM SCHEDULES A & B
A6: STORMWATER MANGAGEMENT FACILITIES | C6: TOTALS FROM SCHEDULE A AND B
B7: SCHEDULE A GRAND TOTAL | C7: ='Sch A'!$O$118 -> 0
B8: SCHEDULE B GRAND TOTAL | C8: ='Sch B'!$F$72 -> 0
B9: LABOR RATES TOTAL | C9: ='Sch B'!$F$84 -> 0
B10: TOTAL BID PRICE * | C10: =SUM(C7:C9) -> 0
B11: * Transfer this amount to the official Bid Form
